lending/lending_fUSD_20240219
["ID","MTS","AMOUNT","RATE_DAILY","PERIOD"]
[314446856,1708361456072,-157.164686,0.00040542,14]
[314446857,1708361456081,-157.164686,0.00040542,14]
[314446858,1708361456090,-157.164686,0.00040542,14]
[314446859,1708361456100,-157.164686,0.00040542,14]
[314446860,1708361456109,-157.164686,0.00040542,14]
[314446861,1708361456119,-157.164686,0.00040542,14]
[314446862,1708361456128,-157.164686,0.00040542,14]
[314446863,1708361456137,-151.0,0.00040542,14]
[314446864,1708361456146,-151.0,0.00040542,14]
[314446865,1708361456156,-151.0,0.00040542,14]
[314446866,1708361456165,-189.909828,0.00040542,14]
[314446867,1708361456174,-181.942633,0.00040548,14]
[314446868,1708361456183,-429.11942121,0.00040591,2]
[314446869,1708361456192,-300.0,0.000406,60]
[314446870,1708361456203,-1000.0,0.000406,15]
[314446871,1708361456213,-364.32969256,0.00040614,9]
[314446872,1708361456222,-158.0,0.00040637,7]
[314446873,1708361456232,-271.340281,0.0004064,2]
[314446874,1708361456241,-151.0,0.0004064,14]
[314446875,1708361456251,-271.340273,0.0004064,2]
[314446876,1708361456260,-382.749825,0.0004064,14]
[314446877,1708361456270,-382.749829,0.0004064,14]
[314446878,1708361456280,-878.867355,0.0004064,14]
[314446879,1708361456290,-878.86735906,0.0004064,14]
[314446880,1708361456299,-682.280234,0.0004064,14]
[314446881,1708361456309,-875.261303,0.0004064,14]
[314446882,1708361456319,-682.280234,0.0004064,14]
[314446883,1708361456330,-875.261307,0.0004064,14]
[314446884,1708361456339,-1280.335329,0.0004064,14]
[314446885,1708361456349,-364.755413,0.0004064,14]
[314446886,1708361456358,-1280.335338,0.0004064,14]
[314446887,1708361456367,-364.755414,0.0004064,14]
[314446888,1708361456376,-233.212311,0.0004064,14]
[314446889,1708361456385,-500.0,0.00040646,10]
[314446890,1708361456394,-449.32398564,0.00040646,10]
[314446891,1708361456404,-201.93013,0.0004065,5]
[314446892,1708361456413,-210.0,0.0004068,2]
[314446893,1708361456422,-1000.0,0.000407,15]
[314446894,1708361456431,-1013.48,0.000407,7]
[314446895,1708361456440,-6168.76449708,0.00040711,14]
[314446896,1708361456449,-424.234054,0.00040711,14]
[314446897,1708361456460,-151.0,0.00040711,14]
[314446898,1708361456468,-424.234063,0.00040711,14]
[314446899,1708361456477,-159.796282,0.00040711,14]
[314446900,1708361456486,-159.796289,0.00040711,14]
[314446901,1708361456496,-151.0,0.00040711,14]
[314446902,1708361456505,-151.0,0.00040711,7]
[314446903,1708361456514,-151.0,0.00040711,14]
[314446904,1708361456524,-210.280858,0.00040711,14]
[314446905,1708361456533,-161.224571,0.00040711,14]
[314446906,1708361456543,-210.280865,0.00040711,14]
[314446907,1708361456552,-161.224565,0.00040711,14]
[314446908,1708361456562,-151.0,0.00040711,14]
[314446909,1708361456571,-186.718121,0.00040711,14]
[314446910,1708361456580,-186.718117,0.00040711,14]
[314446911,1708361456589,-1527.904099,0.00040711,14]
[314446912,1708361456598,-1527.904097,0.00040711,14]
[314446913,1708361456607,-986.463743,0.00040711,14]
[314446914,1708361456617,-986.463737,0.00040711,14]
[314446915,1708361456626,-5284.596933,0.00040711,14]
[314446916,1708361456636,-5284.596936,0.00040711,14]
[314446917,1708361456645,-185.672444,0.00040711,14]
[314446918,1708361456654,-185.672452,0.00040711,14]
[314446919,1708361456664,-2176.339579,0.00040711,14]
[314446920,1708361456674,-2176.339582,0.00040711,14]
[314446921,1708361456684,-651.894094,0.00040711,14]
[314446922,1708361456694,-651.894101,0.00040711,14]
[314446923,1708361456705,-151.0,0.00040711,7]
[314446924,1708361456715,-152.37947,0.00040711,14]
[314446925,1708361456725,-151.0,0.00040711,3]
[314446926,1708361456734,-152.37947,0.00040711,14]
[314446927,1708361456743,-152.75,0.00040753,2]
[314446928,1708361456753,-158.0,0.00040774,7]
[314446929,1708361456763,-200.0,0.00040795,2]
[314446930,1708361456773,-300.0,0.000408,60]
[314446931,1708361456783,-1791.27,0.000408,7]
[314446932,1708361456793,-1000.0,0.000408,15]
[314446933,1708361456802,-151.475004,0.00040857,2]
[314446934,1708361456812,-151.774132,0.00040857,2]
[314446935,1708361456822,-152.266666,0.00040888,7]
[314446936,1708361456832,-163.432888,0.00040888,7]
[314446937,1708361456842,-200.0,0.0004089,2]
[314446938,1708361456851,-1000.0,0.000409,15]
[314446939,1708361456860,-200.0,0.000409,15]
[314446940,1708361456870,-299.09,0.000409,16]
[314446941,1708361456880,-151.0,0.000409,14]
[314446942,1708361456889,-189.37692,0.000409,14]
[314446943,1708361456899,-151.0,0.000409,14]
[314446944,1708361456908,-189.376924,0.000409,14]
[314446945,1708361456918,-1773.679696,0.000409,14]
[314446946,1708361456930,-222.781751,0.000409,7]
[314446947,1708361456940,-1773.679698,0.000409,14]
[314446948,1708361456951,-201.530845,0.000409,14]
[314446949,1708361456962,-201.530848,0.000409,14]
[314446950,1708361456971,-5016.335081,0.000409,6]
[314446951,1708361456981,-218.169546,0.000409,14]
[314446952,1708361456991,-218.169546,0.000409,14]
[314446953,1708361457000,-151.0,0.000409,7]
[314446954,1708361457009,-6584.969521,0.000409,14]
[314446955,1708361457021,-151.0,0.000409,14]
[314446956,1708361457030,-6584.969521,0.000409,14]
[314446957,1708361457039,-211.641249,0.000409,14]
[314446958,1708361457049,-292.541465,0.000409,14]
[314446959,1708361457149,-211.641249,0.000409,14]
[314446960,1708361457159,-151.0,0.000409,14]
[314446961,1708361457169,-156.432827,0.000409,14]
[314446962,1708361457179,-156.432827,0.000409,14]
[314446963,1708361457188,-229.005202,0.000409,14]
[314446964,1708361457198,-151.0,0.000409,14]
[314446965,1708361457209,-158.0,0.00040911,7]
[314446966,1708361457219,-1353.410739,0.00040917,3]
[314446967,1708361457228,-156.85,0.00040941,2]
[314446968,1708361457239,-2884.45831335,0.00040957,3]
[314446969,1708361457248,-300.36301457,0.0004097,3]
[314446970,1708361457257,-500.19255353,0.0004097,3]
[314446971,1708361457267,-86768.51229818,0.0004098,2]
[314446972,1708361457276,-373.459348,0.0004098,14]
[314446973,1708361457286,-373.459348,0.0004098,14]
[314446974,1708361457295,-251.894716,0.0004098,14]
[314446975,1708361457304,-251.894723,0.0004098,14]
[314446976,1708361457313,-268.22844,0.0004098,14]
[314446977,1708361457323,-268.22844,0.0004098,14]
[314446978,1708361457332,-254.111608,0.0004098,14]
[314446979,1708361457341,-705.800469,0.0004098,14]
[314446980,1708361457351,-705.800464,0.0004098,14]
[314446981,1708361457360,-1532.858353,0.0004098,14]
[314446982,1708361457369,-1532.858348,0.0004098,14]
[314446983,1708361457378,-151.0,0.0004098,14]
[314446984,1708361457387,-542.891082,0.0004098,14]
[314446985,1708361457396,-899.921665,0.0004098,14]
[314446986,1708361457405,-542.891083,0.0004098,14]
[314446987,1708361457415,-899.921667,0.0004098,14]
[314446988,1708361457424,-273.256437,0.0004098,14]
[314446989,1708361457433,-273.256428,0.0004098,14]
[314446990,1708361457442,-151.0,0.0004098,14]
[314446991,1708361457451,-151.0,0.0004098,14]
[314446992,1708361457462,-248.071037,0.0004098,14]
[314446993,1708361457471,-151.0,0.0004098,14]
[314446994,1708361457480,-248.071034,0.0004098,14]
[314446995,1708361457489,-151.0,0.0004098,14]
[314446996,1708361457498,-151.0,0.0004098,14]
[314446997,1708361457507,-6168.76449708,0.00040985,15]
[314446998,1708361457517,-200.0,0.00040987,31]
[314446999,1708361457526,-200.0,0.00040987,10]
[314447000,1708361457535,-230.12520523,0.00040999,3]
[314447001,1708361457544,-313.74014338,0.00040999,3]
[314447002,1708361457553,-100000.0,0.00041,21]
[314447003,1708361457562,-300.0,0.00041,60]
[314447004,1708361457571,-5000.0,0.00041,10]
[314447005,1708361457580,-455.42423713,0.00041,41]
[314447006,1708361457590,-8502.46323904,0.00041,4]
[314447007,1708361457599,-8000.0,0.00041,3]
[314447008,1708361457609,-250.0,0.00041,3]
[314447009,1708361457619,-173796.83370052,0.00041,5]
[314447010,1708361457629,-300.0,0.00041,42]
[314447011,1708361457638,-899.99999908,0.00041,42]
[314447012,1708361457647,-151.0,0.00041,14]
[314447013,1708361457657,-157.164686,0.00041,14]
[314447014,1708361457666,-157.164686,0.00041,14]
[314447015,1708361457676,-500.0,0.00041,14]
[314447016,1708361457685,-200.0,0.00041,16]
[314447017,1708361457694,-5150.991598,0.00041,11]
[314447018,1708361457705,-18216.44547696,0.00041,2]
[314447019,1708361457715,-218.169546,0.00041,14]
[314447020,1708361457725,-218.16955,0.00041,14]
[314447021,1708361457735,-151.0,0.00041,7]
[314447022,1708361457745,-6584.969521,0.00041,14]
[314447023,1708361457755,-151.0,0.00041,14]
[314447024,1708361457764,-6584.969523,0.00041,14]
[314447025,1708361457773,-211.641249,0.00041,14]
[314447026,1708361457783,-211.64125,0.00041,14]
[314447027,1708361457792,-151.0,0.00041,14]
[314447028,1708361457801,-156.432827,0.00041,14]
[314447029,1708361457810,-156.432833,0.00041,14]
[314447030,1708361457820,-151.0,0.00041,14]
[314447031,1708361457829,-151.0,0.00041,7]
[314447032,1708361457839,-152.37947,0.00041,14]
[314447033,1708361457848,-151.0,0.00041,3]
[314447034,1708361457858,-152.379465,0.00041,14]
[314447035,1708361457867,-250.484529,0.00041021,2]
[314447036,1708361457876,-158.0,0.00041048,7]
[314447037,1708361457886,-153.22,0.00041052,2]
[314447038,1708361457895,-5000.0,0.0004107,2]
[314447039,1708361457905,-364.32969256,0.00041071,10]
[314447040,1708361457914,-750.0,0.00041085,2]
[314447041,1708361457925,-2500.0,0.00041095,2]
[314447042,1708361457935,-200.0,0.00041096,2]
[314447043,1708361457945,-183.0,0.00041096,2]
[314447044,1708361457956,-403.98339718,0.00041096,10]
[314447045,1708361457967,-1000.0,0.000411,15]
[314447046,1708361457977,-726.24,0.000411,4]
[314447047,1708361457987,-726.24,0.000411,4]
[314447048,1708361457996,-726.24,0.000411,4]
[314447049,1708361458006,-726.24,0.000411,4]
[314447050,1708361458016,-726.24,0.000411,4]
[314447051,1708361458026,-726.24,0.000411,4]
[314447052,1708361458036,-726.24,0.000411,4]
[314447053,1708361458046,-726.24,0.000411,4]
[314447054,1708361458056,-726.24,0.000411,4]
[314447055,1708361458066,-726.24,0.000411,4]
[314447056,1708361458076,-726.24,0.000411,4]
[314447057,1708361458086,-726.24,0.000411,4]
[314447058,1708361458096,-726.24,0.000411,4]
[314447059,1708361458106,-726.24,0.000411,4]
[314447060,1708361458116,-726.24,0.000411,4]
[314447061,1708361458126,-726.24,0.000411,4]
[314447062,1708361458137,-726.24,0.000411,4]
[314447063,1708361458147,-726.24,0.000411,4]
[314447064,1708361458156,-726.24,0.000411,4]
[314447065,1708361458168,-726.24,0.000411,4]
[314447066,1708361458178,-152.55,0.000411,4]
[314447067,1708361458187,-152.55,0.000411,4]
[314447068,1708361458197,-152.55,0.000411,4]
[314447069,1708361458209,-152.55,0.000411,4]
[314447070,1708361458218,-157.61,0.00041109,2]
[314447071,1708361458227,-192.15,0.00041177,2]
[314447072,1708361458237,-158.0,0.00041185,7]
[314447073,1708361458246,-300.0,0.000412,60]
[314447074,1708361458256,-1000.0,0.000412,15]
[314447075,1708361458266,-150.03,0.00041223,2]
[314447076,1708361458275,-6168.76449708,0.00041258,15]
[314447077,1708361458285,-1000.0,0.00041271,2]
[314447078,1708361458294,-1000.0,0.000413,30]
[314447079,1708361458303,-181.942633,0.0004137,14]
[314447080,1708361458313,-982.57587873,0.00041378,5]
[314447081,1708361458322,-150.0,0.00041384,2]
[314447082,1708361458332,-300.0,0.000414,60]
[314447083,1708361458342,-1013.48,0.000414,7]
[314447084,1708361458351,-799.73342349,0.000414,2]
[314447085,1708361458360,-889.50746657,0.000414,2]
[314447086,1708361458369,-2163.04721428,0.000414,2]
[314447087,1708361458379,-632.95522712,0.000414,2]
[314447088,1708361458389,-2532.1834618,0.000414,2]
[314447089,1708361458398,-180.0,0.00041403,2]
[314447090,1708361458407,-156.85,0.00041417,2]
[314447091,1708361458417,-1000.0,0.000415,15]
[314447092,1708361458427,-1791.27,0.000415,7]
[314447093,1708361458437,-200.0,0.000415,17]
[314447094,1708361458447,-250.484529,0.00041516,30]
[314447095,1708361458456,-205.136995,0.00041516,30]
[314447096,1708361458468,-151.475004,0.00041516,30]
[314447097,1708361458478,-151.774132,0.00041516,30]
[314447098,1708361458488,-364.32969256,0.00041529,10]
[314447099,1708361458589,-6168.76449708,0.00041532,15]
[314447100,1708361458599,-555.0,0.00041535,2]
[314447101,1708361458609,-666.0,0.00041535,2]
[314447102,1708361458618,-4995.84,0.00041565,2]
[314447103,1708361458627,-210.0,0.0004159,2]
[314447104,1708361458637,-300.0,0.000416,60]
[314447105,1708361458646,-159.5,0.00041627,2]
[314447106,1708361458655,-1000.0,0.00041633,2]
[314447107,1708361458664,-3000.0,0.00041643,120]
[314447108,1708361458674,-172.39,0.000417,7]
[314447109,1708361458683,-1353.410739,0.00041731,4]
[314447110,1708361458693,-2884.45831335,0.00041781,4]
[314447111,1708361458702,-300.0,0.000418,60]
[314447112,1708361458715,-1000.0,0.000418,15]
[314447113,1708361458725,-1012.02,0.000418,20]
[314447114,1708361458736,-1000.0,0.000418,30]
[314447115,1708361458745,-6168.76449708,0.00041805,16]
[314447116,1708361458755,-5000.0,0.00041839,2]
[314447117,1708361458764,-150.5,0.0004189,120]
[314447118,1708361458773,-150.5,0.0004189,120]
[314447119,1708361458782,-265.97,0.0004189,120]
[314447120,1708361458791,-291.0,0.0004189,120]
[314447121,1708361458801,-725.0,0.0004189,120]
[314447122,1708361458810,-662.0,0.0004189,120]
[314447123,1708361458819,-331.0,0.0004189,2]
[314447124,1708361458829,-208.0,0.0004189,2]
[314447125,1708361458839,-156.85,0.00041893,2]
[314447126,1708361458848,-10000.35101234,0.000419,2]
[314447127,1708361458858,-200.0,0.000419,16]
[314447128,1708361458868,-150.5,0.000419,120]
[314447129,1708361458877,-150.5,0.000419,120]
[314447130,1708361458886,-150.5,0.000419,120]
[314447131,1708361458896,-291.0,0.000419,120]
[314447132,1708361458905,-725.0,0.000419,120]
[314447133,1708361458914,-662.0,0.000419,120]
[314447134,1708361458925,-201.93014,0.000419,11]
[314447135,1708361458935,-159.34,0.0004191,120]
[314447136,1708361458949,-195.0,0.0004191,3]
[314447137,1708361458960,-150.5,0.0004191,120]
[314447138,1708361458970,-150.5,0.0004191,120]
[314447139,1708361458980,-160.3,0.0004191,120]
[314447140,1708361458990,-150.5,0.0004191,120]
[314447141,1708361458999,-291.0,0.0004191,120]
[314447142,1708361459008,-725.0,0.0004191,120]
[314447143,1708361459018,-662.0,0.0004191,120]
[314447144,1708361459028,-161.77,0.00041918,2]
[314447145,1708361459038,-195.0,0.0004192,3]
[314447146,1708361459048,-195.0,0.0004193,3]
[314447147,1708361459057,-1429.859308,0.0004194,18]
[314447148,1708361459067,-2677.3718831,0.00041959,2]
[314447149,1708361459077,-106523.6893568,0.00041959,2]
[314447150,1708361459086,-7141.7662157,0.00041959,2]
[314447151,1708361459095,-16546.3349755,0.00041959,2]
[314447152,1708361459104,-1000.0,0.0004196,18]
[314447153,1708361459114,-151.0,0.00041962,14]
[314447154,1708361459124,-156.0,0.0004197,30]
[314447155,1708361459133,-430.0,0.0004197,120]
[314447156,1708361459142,-618.0,0.0004197,120]
[314447157,1708361459151,-364.0,0.0004197,120]
[314447158,1708361459161,-58000.0,0.0004197,5]
[314447159,1708361459171,-58000.0,0.00041979,5]
[314447160,1708361459180,-58000.0,0.00041979,5]
[314447161,1708361459190,-156.0,0.0004198,30]
[314447162,1708361459200,-430.0,0.0004198,120]
[314447163,1708361459213,-618.0,0.0004198,120]
[314447164,1708361459231,-364.0,0.0004198,120]
[314447165,1708361459248,-1000.0,0.0004198,18]
[314447166,1708361459265,-364.32969256,0.00041986,10]
[314447167,1708361459286,-200.0,0.00041987,33]
[314447168,1708361459302,-200.0,0.00041987,11]
[314447169,1708361459319,-58000.0,0.00041988,5]
[314447170,1708361459336,-58000.0,0.00041988,5]
[314447171,1708361459354,-58000.0,0.00041988,5]
[314447172,1708361459371,-3528.13600548,0.00041988,5]
[314447173,1708361459389,-58000.0,0.00041988,5]
[314447174,1708361459409,-157.164686,0.00041988,14]
[314447175,1708361459426,-157.164685,0.00041988,14]
[314447176,1708361459440,-156.0,0.0004199,30]
[314447177,1708361459456,-176.02,0.0004199,120]
[314447178,1708361459472,-430.0,0.0004199,120]
[314447179,1708361459485,-618.0,0.0004199,120]
[314447180,1708361459504,-364.0,0.0004199,120]
[314447181,1708361459520,-100000.0,0.00042,22]
[314447182,1708361459536,-10000.0,0.00042,2]
[314447183,1708361459551,-300.0,0.00042,60]
[314447184,1708361459567,-5000.0,0.00042,21]
[314447185,1708361459582,-350.0,0.00042,42]
[314447186,1708361459597,-41059.10230628,0.00042,2]
[314447187,1708361459612,-250.0,0.00042,3]
[314447188,1708361459626,-998.72028001,0.00042,15]
[314447189,1708361459641,-300.0,0.00042,43]
[314447190,1708361459657,-3008.2646819,0.00042,43]
[314447191,1708361459671,-160.0,0.00042,77]
[314447192,1708361459686,-595.076,0.00042,5]
[314447193,1708361459701,-500.0,0.00042,14]
[314447194,1708361459716,-200.0,0.00042,2]
[314447195,1708361459730,-200.0,0.00042,17]
[314447196,1708361459745,-1000.0,0.00042,18]
[314447197,1708361459762,-200.0,0.00042,2]
[314447198,1708361459776,-1000.0,0.00042,7]
[314447199,1708361459791,-230.12520523,0.00042009,3]
[314447200,1708361459805,-313.74014338,0.00042009,3]
[314447201,1708361459819,-1297.82986682,0.0004201,2]
[314447202,1708361459835,-375.14,0.00042011,2]
[314447203,1708361459849,-6168.76449708,0.00042079,16]
[314447204,1708361459864,-398.91,0.00042092,15]
[314447205,1708361459877,-1013.48,0.000421,7]
[314447206,1708361459892,-983.16905624,0.0004215,35]
[314447207,1708361459907,-1250.0,0.00042181,2]
[314447208,1708361459922,-181.942633,0.00042192,14]
[314447209,1708361459941,-598.55360273,0.000422,60]
[314447210,1708361459955,-1791.27,0.000422,7]
[314447211,1708361459972,-513.43052457,0.0004221,14]
[314447212,1708361459988,-500.0,0.0004221,14]
[314447213,1708361460004,-500.0,0.0004221,14]
[314447214,1708361460021,-500.0,0.0004221,14]
[314447215,1708361460036,-500.0,0.0004221,14]
[314447216,1708361460051,-500.0,0.0004221,14]
[314447217,1708361460067,-500.0,0.0004221,14]
[314447218,1708361460082,-500.0,0.0004221,14]
[314447219,1708361460097,-500.0,0.0004221,14]
[314447220,1708361460112,-500.0,0.0004221,14]
[314447221,1708361460127,-500.0,0.0004221,14]
[314447222,1708361460144,-500.0,0.0004221,14]
[314447223,1708361460159,-500.0,0.0004221,14]
[314447224,1708361460175,-500.0,0.0004221,14]
[314447225,1708361460189,-500.0,0.0004221,14]
[314447226,1708361460204,-500.0,0.0004221,14]
[314447227,1708361460346,-500.0,0.0004221,14]
[314447228,1708361460358,-500.0,0.0004221,14]
[314447229,1708361460368,-500.0,0.0004221,14]
[314447230,1708361460378,-500.0,0.0004221,14]
[314447231,1708361460387,-466.0,0.00042288,90]
[314447232,1708361460397,-306.76,0.00042295,2]
[314447233,1708361460406,-2121.98510024,0.000423,3]
[314447234,1708361460416,-5000.0,0.000423,120]
[314447235,1708361460426,-6168.76449708,0.00042353,16]
[314447236,1708361460435,-150.0,0.00042394,2]
[314447237,1708361460445,-39290.19260409,0.00042435,12]
[314447238,1708361460454,-364.32969256,0.00042443,10]
[314447239,1708361460466,-500.0,0.00042466,7]
[314447240,1708361460475,-1439.458,0.00042486,14]
[314447241,1708361460485,-150.0,0.00042486,30]
[314447242,1708361460494,-307.291,0.00042486,30]
[314447243,1708361460504,-2010.14872588,0.000425,60]
[314447244,1708361460514,-1000.0,0.000425,2]
[314447245,1708361460523,-210.0,0.0004251,2]
[314447246,1708361460533,-842.0,0.00042514,2]
[314447247,1708361460543,-216.0,0.00042514,2]
[314447248,1708361460553,-283.961,0.00042514,2]
[314447249,1708361460562,-150.0,0.00042514,2]
[314447250,1708361460572,-2887.0,0.00042514,2]
[314447251,1708361460581,-314.977,0.00042514,2]
[314447252,1708361460591,-321.0,0.00042514,2]
[314447253,1708361460600,-1137.288,0.00042514,2]
[314447254,1708361460610,-150.0,0.00042514,2]
[314447255,1708361460619,-150.0,0.00042514,2]
[314447256,1708361460628,-150.0,0.00042514,2]
[314447257,1708361460637,-150.0,0.00042514,2]
[314447258,1708361460647,-1353.410739,0.00042545,4]
[314447259,1708361460656,-150.0,0.00042574,2]
[314447260,1708361460666,-150.0,0.00042574,2]
[314447261,1708361460675,-150.0,0.00042574,2]
[314447262,1708361460685,-150.0,0.00042574,2]
[314447263,1708361460695,-2884.45831335,0.00042604,4]
[314447264,1708361460705,-5000.0,0.00042608,2]
[314447265,1708361460716,-500.0,0.00042615,7]
[314447266,1708361460726,-6168.76449708,0.00042626,17]
[314447267,1708361460735,-666.0,0.00042635,2]
[314447268,1708361460744,-2434.60377005,0.000427,120]
[314447269,1708361460754,-1000.0,0.000427,15]
[314447270,1708361460763,-172.39,0.000427,9]
[314447271,1708361460773,-1500.0,0.00042729,2]
[314447272,1708361460782,-500.0,0.00042764,7]
[314447273,1708361460791,-618.0,0.0004277,120]
[314447274,1708361460800,-364.0,0.0004277,120]
[314447275,1708361460809,-618.0,0.0004278,120]
[314447276,1708361460818,-364.0,0.0004278,120]
[314447277,1708361460827,-618.0,0.0004279,120]
[314447278,1708361460837,-364.0,0.0004279,120]
[314447279,1708361460846,-186.04,0.000428,7]
[314447280,1708361460856,-40000.0,0.000428,5]
[314447281,1708361460865,-1013.48,0.000428,7]
[314447282,1708361460874,-152.34971651,0.00042832,17]
[314447283,1708361460883,-156.0,0.0004287,30]
[314447284,1708361460892,-195.0,0.0004287,3]
[314447285,1708361460901,-190.4,0.0004287,120]
[314447286,1708361460911,-150.5,0.0004287,120]
[314447287,1708361460920,-291.0,0.0004287,120]
[314447288,1708361460931,-725.0,0.0004287,120]
[314447289,1708361460942,-662.0,0.0004287,120]
[314447290,1708361460953,-430.0,0.0004287,120]
[314447291,1708361460963,-156.0,0.0004288,30]
[314447292,1708361460975,-195.0,0.0004288,3]
[314447293,1708361460985,-150.5,0.0004288,120]
[314447294,1708361460994,-150.5,0.0004288,120]
[314447295,1708361461012,-291.0,0.0004288,120]
[314447296,1708361461026,-725.0,0.0004288,120]
[314447297,1708361461036,-662.0,0.0004288,120]
[314447298,1708361461049,-430.0,0.0004288,120]
[314447299,1708361461059,-3964.7897926,0.00042888,32]
[314447300,1708361461070,-156.0,0.0004289,30]
[314447301,1708361461080,-195.0,0.0004289,3]
[314447302,1708361461090,-150.5,0.0004289,120]
[314447303,1708361461101,-150.5,0.0004289,120]
[314447304,1708361461111,-291.0,0.0004289,120]
[314447305,1708361461123,-725.0,0.0004289,120]
[314447306,1708361461134,-662.0,0.0004289,120]
[314447307,1708361461145,-430.0,0.0004289,120]
[314447308,1708361461156,-287.0,0.0004289,2]
[314447309,1708361461169,-214.0,0.0004289,3]
[314447310,1708361461180,-200.0,0.000429,17]
[314447311,1708361461192,-152.0,0.000429,4]
[314447312,1708361461203,-1791.27,0.000429,7]
[314447313,1708361461221,-6168.76449708,0.000429,17]
[314447314,1708361461233,-364.32969256,0.000429,11]
[314447315,1708361461245,-983.16905624,0.000429,36]
[314447316,1708361461256,-799.73342349,0.000429,2]
[314447317,1708361461268,-889.50746657,0.000429,2]
[314447318,1708361461279,-2163.04721428,0.000429,2]
[314447319,1708361461290,-632.95522712,0.000429,2]
[314447320,1708361461301,-2532.1834618,0.000429,2]
[314447321,1708361461312,-500.0,0.00042912,7]
[314447322,1708361461323,-982.57587873,0.00042957,5]
[314447323,1708361461334,-2312.2563563,0.00042971,2]
[314447324,1708361461344,-96882.9032838,0.00042971,2]
[314447325,1708361461355,-6477.5645046,0.00042971,2]
[314447326,1708361461366,-15007.4853867,0.00042971,2]
[314447327,1708361461377,-200.0,0.00042987,35]
[314447328,1708361461388,-458.0,0.0004299,2]
[314447329,1708361461399,-1502.44,0.0004299,2]
[314447330,1708361461409,-291.0,0.0004299,2]
[314447331,1708361461419,-230.12520523,0.00042999,4]
[314447332,1708361461430,-313.74014338,0.00042999,4]
[314447333,1708361461440,-313.74014338,0.00042999,4]
[314447334,1708361461450,-230.12520523,0.00042999,4]
[314447335,1708361461466,-313.74014338,0.00042999,4]
[314447336,1708361461476,-230.12520523,0.00042999,4]
[314447337,1708361461486,-313.74014338,0.00042999,4]
[314447338,1708361461497,-230.12520523,0.00042999,4]
[314447339,1708361461507,-18566.04291677,0.00042999,3]
[314447340,1708361461516,-100000.0,0.00043,23]
[314447341,1708361461526,-3524665.91926932,0.00043,10]
[314447342,1708361461536,-21284.42485256,0.00043,4]
[314447343,1708361461546,-350.0,0.00043,43]
[314447344,1708361461557,-500.0,0.00043,3]
[314447345,1708361461567,-500.0,0.00043,3]
[314447346,1708361461577,-500.0,0.00043,5]
[314447347,1708361461587,-250.0,0.00043,3]
[314447348,1708361461598,-500.0,0.00043,2]
[314447349,1708361461608,-4000.0,0.00043,18]
[314447350,1708361461617,-303.743,0.00043,14]
[314447351,1708361461627,-300.0,0.00043,44]
[314447352,1708361461637,-1000.0,0.00043,30]
[314447353,1708361461646,-836.69972818,0.00043,2]
[314447354,1708361461656,-195237.6003101,0.00043,2]
[314447355,1708361461666,-500.0,0.00043,14]